Cogmind - Beta 15 @@@ ROGUE MODE // 2025.10.09 @ 09:06:13 Player: weedlord420 Result: Self-destructed Performance ------------- Evolutions (4) 2000 Regions Visited (11) 2200 Robots Destroyed (176) 880 Value Destroyed (4055) 4055 Prototype IDs (16) 320 Alien Tech Used (0) 0 Bonus (883) 883 TOTAL SCORE: 10338 Bonus ------- High Alert Combat Kills 55 Follower Combat Kills 28 Registered with UFD 300 Met Optimus in HQ 500 Cogmind --------- Core Integrity 818/850 Matter 300/300 Energy 75/100 System Corruption 0% Temperature Cool (3) Movement Flying (50) Location -6/Factory Parts ------- > --- POWER (2) -------- (None) > --- PROPULSION (4) --- Armored Treads Improved Flight Unit Improved VTOL Module Improved VTOL Module > --- UTILITY (7) ------ Advanced Weight Redist. System Advanced Sensor Array Improved Signal Interpreter Transmission Jammer Hacking Suite Authchip [Device] > --- WEAPON (2) ------- Improved Datajack Shock Maul > --- INVENTORY (5) ---- Advanced ECM Suite Splice Drone Bay (6/6) Plasma Cutter Large Botcube Peak State ------------ > --- POWER ------------ Angular Momentum Engine Light Fission Core > --- PROPULSION ------- Armored Treads Improved Flight Unit Improved VTOL Module Improved VTOL Module > --- UTILITY ---------- Advanced Weight Redist. System Improved Trap Scanner Transmission Jammer Advanced ECM Suite Hacking Suite Hacking Suite Authchip [Device] > --- WEAPON ----------- Improved Datajack Shock Maul > --- INVENTORY -------- Makeshift Sensor Array Splice Drone Bay Plasma Cutter Large Botcube [Rating: 63] Favorites ----------- Power Improved Ion Engine Engine Improved Ion Engine Power Core Micro Nuclear Core Propulsion Improved Treads Treads Improved Treads Leg Titanium Leg Wheel Wheel Hover Unit Gravmag System Flight Unit Improved VTOL Module Utility Medium Storage Unit Device Heat Sink Storage Medium Storage Unit Processor Makeshift Salvage Targeting Computer Hackware Hacking Suite Protection Light Armor Plating Weapon Spread Laser Energy Gun Spread Laser Energy Cannon Cooled Plasma Cannon Ballistic Gun Shotgun Ballistic Cannon Assault Cannon Launcher Grenade Launcher Special Weapon Remote Datajack Impact Weapon Shock Maul Special Melee Weapon Improved Datajack Build | -11 -10 -10 -9 -9 -9 -8 -8 -8 -8 -8 -6 ------- Run | Yrd Mat Min Mat Min Exi Min Mat Sto Rec Scr Fac Slots Evolved 8 | . . . 2 . . . 2 . . . 4 Power 1 | . . . . . . . . . . . 1 Propulsion 2 | . . . . . . . 1 . . . 1 Utility 5 | . . . 2 . . . 1 . . . 2 Weapon . | . . . . . . . . . . . . Parts Attached 112 | 6 10 3 25 3 9 6 11 24 2 4 9 Power 15 | 1 . 1 3 2 . 2 1 1 1 1 2 Engine 12 | 1 . 1 3 2 . 1 1 1 1 . 1 Core 3 | . . . . . . 1 . . . 1 1 Reactor . | . . . . . . . . . . . . Propulsion 28 | 2 3 . 8 . 2 3 2 7 1 . . Treads 14 | . 3 . 7 . . 1 1 2 . . . Leg 1 | . . . . . . . . 1 . . . Wheel 3 | 2 . . 1 . . . . . . . . Hover 3 | . . . . . . 2 1 . . . . Flight 7 | . . . . . 2 . . 4 1 . . Utility 45 | 1 2 1 11 1 3 1 6 9 . 3 7 Device 19 | . 1 . 4 1 1 1 2 2 . 1 6 Storage 4 | 1 1 . . . 1 . 1 . . . . Processor 2 | . . . . . 1 . . . . . 1 Hackware 5 | . . . . . . . 1 2 . 2 . Protection 15 | . . 1 7 . . . 2 5 . . . Artifact . | . . . . . . . . . . . . Weapon 24 | 2 5 1 3 . 4 . 2 7 . . . Energy Gun 9 | 2 3 1 1 . 2 . . . . . . Energy Cannon 1 | . . . . . . . . 1 . . . Ballistic Gun 4 | . 1 . . . . . 2 1 . . . Ballistic Cannon . | . . . . . . . . . . . . Launcher 4 | . 1 . 1 . . . . 2 . . . Special Weapon 3 | . . . . . 2 . . 1 . . . Impact Weapon 1 | . . . . . . . . 1 . . . Slashing Weapon . | . . . . . . . . . . . . Piercing Weapon . | . . . . . . . . . . . . Special Melee Weapon 2 | . . . 1 . . . . 1 . . . Unidentified Prototypes 5 | . . . 1 1 . . . 3 . . . Corrupted Parts 4 | . . . . . . 3 . . . 1 . System Corruption 10 | . . . . . . 6 . . . 4 . Parts Lost 19 | . 1 . . . . . 2 13 1 . 2 Power 2 | . . . . . . . . 1 . . 1 Propulsion 6 | . . . . . . . 1 5 . . . Utility 8 | . 1 . . . . . . 5 1 . 1 Weapon 3 | . . . . . . . 1 2 . . . Highest Loss Streak 3 | . 1 . . . . . 1 3 1 . 2 To Critical Strikes . | . . . . . . . . . . . . Average Backups 8 | 3 7 9 9 10 9 9 9 7 5 4 2 Power . | . 1 1 . . . 1 . . . . . Propulsion 2 | 2 2 3 4 5 3 3 1 . 1 1 . Utility 1 | . . . 1 1 1 2 3 4 2 1 1 Weapon 1 | . 3 4 2 1 1 1 1 1 1 . . Tool/Special . | . . . . . . . . . . . . Unused Backups 9 | . . . 3 1 3 . 1 . . . 1 Power . | . . . . . . . . . . . . Propulsion 4 | . . . . 1 3 . . . . . . Utility 2 | . . . 1 . . . . . . . 1 Weapon 2 | . . . 2 . . . . . . . . Tool/Special 1 | . . . . . . . 1 . . . . Average Slot Usage (%) 93 | . 93 100 98 100 97 88 88 87 98 93 90 Engine 8 | . 14 14 10 11 11 10 . 3 8 9 3 Core 1 | . . . . . . . 8 5 . . 2 Treads 15 | . 24 11 16 22 20 21 10 13 2 . 5 Wheel 2 | . 3 16 5 . . . . . . . . Hover 2 | . . . . . . . 16 . . . . Flight 4 | . . . . . 1 . . 8 24 27 20 Device 14 | . 7 . 10 11 14 12 20 19 35 21 22 Storage 9 | . 14 14 11 11 11 11 9 4 . . . Processor 1 | . . . . . 5 10 . . . . 2 Hackware 3 | . . . . . . . 2 5 9 17 19 Protection 8 | . . 14 21 22 10 . 3 7 . . . Energy Gun 13 | . 26 27 20 22 17 22 4 . . . . Ballistic Gun 2 | . . . . . . . 12 4 . . . Impact Weapon 1 | . . . . . . . . 5 9 9 6 Special Melee Weapon 1 | . . . . . . . . 3 9 9 6 Peak Build Rating 63 | 6 10 10 17 23 28 36 44 47 46 49 63 Average Rating 26 | 3 9 9 14 17 21 26 38 35 45 43 56 On Entrance 23 | . 6 8 10 17 17 28 27 38 42 46 46 Naked Turns . | . . . . . . . . . . . . Heaviest Build 44 | 13 22 22 34 34 30 37 36 44 23 22 24 Greatest Support 63 | 26 40 40 46 46 46 46 63 63 29 24 24 Greatest Overweight (x) 2 | . . . 2 . 1 . . 2 . . . Average Overweight (x) . | . . . . . . . . . . . . Largest Inventory Capacity 10 | 8 10 10 10 10 10 10 10 10 5 5 5 Average Capacity 9 | 7 9 10 10 10 9 10 10 7 5 5 5 Most Carried 10 | 6 10 10 10 10 10 10 10 10 5 5 5 Average Carried 8 | 3 7 9 9 9 8 9 9 7 4 4 4 Final Capacity 10 | 8 10 10 10 10 10 10 10 5 5 5 5 Final Carried 10 | 4 10 10 10 10 9 10 9 5 5 5 5 Class Distribution -------------------- 67% | Mutant 18% | Scavenger-Mutant 6% | Hacker-Mutant 4% | Hacker-Sprinter 3% | Sprinter Dominant Class ---------------- Mutant | -10/Materials Mutant | -10/Mines Mutant | -9/Materials Mutant | -9/Mines Mutant | -9/Exiles Mutant | -8/Mines Scavenger-Mutant | -8/Materials Mutant | -8/Storage Sprinter | -8/Recycling Hacker-Sprinter | -8/Scraptown Hacker-Mutant | -6/Factory Resources | -11 -10 -10 -9 -9 -9 -8 -8 -8 -8 -8 -6 ----------- Run | Yrd Mat Min Mat Min Exi Min Mat Sto Rec Scr Fac Matter Collected 3851 | 229 256 78 684 97 245 182 1071 711 90 8 200 Remotely . | . . . . . . . . . . . . Salvage Created 5897 | . 480 49 1166 264 327 257 1253 1409 151 . 541 Parts 323 | . 24 9 83 31 23 27 65 50 2 . 9 Haulers Intercepted 11 | . 1 . 4 . . . 1 5 . . . Recyclers Shooed 4 | . 1 . . . . . 1 . 1 . 1 Parts Field Recycled . | . . . . . . . . . . . . Retrieved Matter . | . . . . . . . . . . . . Parts Self-Destructed . | . . . . . . . . . . . . Prevented . | . . . . . . . . . . . . Kills | -11 -10 -10 -9 -9 -9 -8 -8 -8 -8 -8 -6 ------- Run | Yrd Mat Min Mat Min Exi Min Mat Sto Rec Scr Fac Combat Hostiles Destroyed 108 | . 9 3 29 10 . 12 20 20 1 . 4 Melee 8 | . . . . . . . . 6 . . 2 Guns 71 | . 9 3 21 10 . 9 16 3 . . . AOE 19 | . . . 8 . . 3 4 4 . . . Classes Destroyed 14 | . 7 1 4 . . . . 1 . . 1 Worker 12 | . . . 3 . . 3 1 5 . . . Builder 7 | . . 1 1 2 . . 2 1 . . . Tunneler 4 | . 1 . . 2 . . 1 . . . . Hauler 11 | . 1 . 4 . . . 1 5 . . . Recycler 16 | . 2 . 1 2 . . 3 5 1 . 2 Mechanic 3 | . . . 1 . . . . . . . 2 Operator 4 | . 1 . . . . . 1 1 . . 1 Watcher 9 | . 2 . 4 . . . 1 1 . . 1 Swarmer 39 | . 3 3 6 10 . 11 3 3 . . . Grunt 39 | . 6 . 12 . 2 1 11 7 . . . Duelist 3 | . . . 1 . . . 1 1 . . . Sentry 24 | . . . 10 . . . 5 8 1 . . Hunter 2 | . . . . . . . . 1 . . 1 Programmer 3 | . . . . . . . . . . . 3 Best Kill Streak 13 | . 3 3 7 4 . 4 5 13 1 . 3 Combat Bots Only 6 | . 3 3 6 4 . 4 4 4 1 . 3 Max Kills in Single Turn 4 | . 2 2 4 2 2 2 2 2 1 . 1 Gunslinging 1 | . . . . 1 . 1 . . . . . Exploded 3 | . . . 3 . . 2 2 1 . . . Melee 1 | . . . . . . . . 1 . . 1 Uniques/NPCs Destroyed . | . . . . . . . . . . . . Combat | -11 -10 -10 -9 -9 -9 -8 -8 -8 -8 -8 -6 -------- Run | Yrd Mat Min Mat Min Exi Min Mat Sto Rec Scr Fac Hostile Shots Fired 454 | . 23 16 64 22 . 55 77 146 6 . 45 Missed 133 | . 4 6 16 6 . 20 23 35 3 . 20 Hits 321 | . 19 10 48 16 . 35 54 111 3 . 25 Melee 9 | . . . 2 . . . 1 6 . . . Projectile 312 | . 19 10 46 16 . 35 53 105 3 . 25 AOE 1 | . . . . . . . . 1 . . . Critical Strikes 14 | . . . 4 1 . . 1 7 . . 1 Damage Taken 4937 | . 270 72 679 130 20 401 872 2045 43 . 405 Core 737 | . 69 10 107 . 10 56 115 338 . . 32 Absorbed by Shields . | . . . . . . . . . . . . Redirected to Shielding 36 | . . 1 6 . . . . 29 . . . Regen/Repaired (Parts) 87 | . . . . . . . 55 32 . . . Core Remaining (%) 60 | 100 . 68 . . . 56 . . . 17 . Volleys Fired 335 | . 32 6 67 20 35 28 116 31 . . . Largest 2 | . 2 2 2 2 2 2 2 2 . . . Hottest 130 | . 130 130 130 130 130 115 94 72 . . . Shots Fired 574 | . 59 12 130 40 38 57 182 56 . . . Gun 530 | . 54 12 120 40 34 57 174 39 . . . Cannon 5 | . . . . . . . . 5 . . . Launcher 31 | . 5 . 10 . . . 5 11 . . . Special 8 | . . . . . 4 . 3 1 . . . Kinetic 204 | . 6 . . . . . 154 44 . . . Thermal 261 | . 42 12 120 40 6 29 11 1 . . . Explosive 31 | . 5 . 10 . . . 5 11 . . . Electromagnetic 71 | . 6 . . . 28 28 9 . . . . Robot Hit Streak 17 | . 13 4 17 7 16 8 12 7 . . . Robot Miss Streak 11 | . 8 8 10 11 4 8 5 4 . . . Penetration Max . | . . . . . . . . . . . . Secondary Targets 6 | . . . 2 3 . 1 . . . . . Max Gunslinging Chain 1 | . . . 1 1 . 1 . . . . . Shots Hit Robots 499 | . 44 11 106 34 39 39 121 81 6 . 18 Core Hits 446 | . 63 11 169 45 23 36 62 34 1 . 2 Critical Kills 2 | . . . . . . . . 2 . . . Critical Parts Destroyed 25 | . . . . . . . . 14 1 . 10 Critical Strikes 29 | . . . . . . . . 17 2 . 10 Smash 29 | . . . . . . . . 17 2 . 10 Melee Attacks 129 | . . . . . 6 . . 63 16 . 44 Impact 123 | . . . . . . . . 63 16 . 44 Slashing . | . . . . . . . . . . . . Piercing . | . . . . . . . . . . . . Sneak Attacks 25 | . . . . . 6 . . 11 3 . 5 Combat Hostiles 1 | . . . . . . . . . 1 . . Follow-up Attacks . | . . . . . . . . . . . . Damage Inflicted 12397 | . 677 104 2088 375 480 607 2195 4199 542 . 1130 Guns 6131 | . 621 104 1629 375 344 496 1999 563 . . . Cannons 45 | . . . . . . . . 45 . . . Explosions 1668 | . 56 . 459 . 136 97 188 732 . . . Melee 4531 | . . . . . . . . 2859 542 . 1130 Ramming 22 | . . . . . . 14 8 . . . . Kinetic 2440 | . 48 . . . . . 1784 608 . . . Thermal 3392 | . 536 104 1629 375 233 380 135 . . . . Explosive 1435 | . 56 . 459 . . . 188 732 . . . Electromagnetic 577 | . 37 . . . 247 213 80 . . . . Impact 4531 | . . . . . . . . 2859 542 . 1130 Slashing . | . . . . . . . . . . . . Piercing . | . . . . . . . . . . . . Highest Corruption 8 | . . . 2 2 2 8 . 2 2 4 . Average Corruption 2 | . . . 2 2 2 2 . 2 2 3 . Corruption Purged . | . . . . . . . . . . . . Corruption Blocked . | . . . . . . . . . . . . Effects 73 | . . . 9 16 18 22 . 6 2 . . Message Errors 10 | . . . 1 2 5 2 . . . . . Matter Fused 29 | . . . 5 8 5 8 . 2 1 . . Heat Flow Errors 13 | . . . 3 2 2 1 . 4 1 . . Energy Discharges 4 | . . . . 1 1 2 . . . . . Data Loss (minor) 12 | . . . . 3 5 4 . . . . . Data Loss (major) 3 | . . . . . . 3 . . . . . Misfires 1 | . . . . . . 1 . . . . . Alerts 1 | . . . . . . 1 . . . . . Overload Shots . | . . . . . . . . . . . . Overflow Damage 2559 | . . . 8 . . . . 1462 194 . 895 Projectiles 3 | . . . . . . . . . . . 3 Explosions 23 | . . . 8 . . . . 15 . . . Melee 2533 | . . . . . . . . 1447 194 . 892 Knockbacks 16 | . . . . . . . . 9 2 . 5 Impact 15 | . . . . . . . . 9 2 . 4 Kinetic . | . . . . . . . . . . . . Secondary 1 | . . . . . . . . . . . 1 Self-Inflicted Damage 208 | . 15 . . . 21 8 4 160 . . . Shots 8 | . 1 . . . 1 1 1 4 . . . Rammed 1 | . . . . . . 1 . . . . . Targets Rammed 3 | . . . . . . 2 1 . . . . Kicked . | . . . . . . . . . . . . Crushed 2 | . . . . . . 1 1 . . . . Highest Temperature 346 | . 309 256 252 293 165 310 346 251 222 . . Average Temperature 69 | . 80 98 74 88 50 99 36 42 111 . . Received Heat Transfer 1662 | . 93 . 291 . . 108 423 729 18 . . Effects 4 | . 2 . . 1 . . 1 . . . . Shutdowns 1 | . . . . . . . 1 . . . . Energy Bleed 1 | . . . . 1 . . . . . . . Interference 2 | . 2 . . . . . . . . . . Siege Activations . | . . . . . . . . . . . . Martial Activations . | . . . . . . . . . . . . Shielding Activations . | . . . . . . . . . . . . Robots Disrupted . | . . . . . . . . . . . . Combat Hostiles . | . . . . . . . . . . . . Robots Corrupted 21 | . . . . . 1 . . 13 2 . 5 Combat Hostiles 10 | . . . . . . . . 7 1 . 2 Parts Fried 30 | . . . . . . . 1 19 3 . 7 Impact Corruptions 70 | . . . . . . . . 37 5 . 28 Robots Melted . | . . . . . . . . . . . . Combat Hostiles . | . . . . . . . . . . . . Parts Melted . | . . . . . . . . . . . . Heat Transferred 4234 | . 660 135 2030 480 270 400 259 . . . . Parts Sabotaged . | . . . . . . . . . . . . Parts Stolen . | . . . . . . . . . . . . Parts Stripped . | . . . . . . . . . . . . Power Chain Reactions 3 | . . . . . 1 2 . . . . . Alert | -11 -10 -10 -9 -9 -9 -8 -8 -8 -8 -8 -6 ------- Run | Yrd Mat Min Mat Min Exi Min Mat Sto Rec Scr Fac Maximum Alert Level 2 | . . . 1 . . . 2 2 1 . . Low Security (%) 82 | 100 100 100 73 100 . 100 68 43 96 . 100 Level 1 12 | . . . 26 . . . 30 10 3 . . Level 2 5 | . . . . . . . . 45 . . . Level 3 . | . . . . . . . . . . . . Level 4 . | . . . . . . . . . . . . Level 5 . | . . . . . . . . . . . . High Security . | . . . . . . . . . . . . Max Security . | . . . . . . . . . . . . Peak Influence 641 | . 90 60 312 166 . 107 401 641 205 . 79 Initial 195 | . . 7 . 66 . . 10 107 195 . . Average 102 | . 14 8 145 46 . 34 124 307 133 . 6 Influence Increases 4187 | . 321 75 999 260 15 401 645 1212 38 . 221 Destroy 0b10 Robot/C 2240 | . 180 60 580 200 . 320 400 400 20 . 80 Destroy 0b10 Robot/NC 360 | . 35 5 70 30 15 15 50 100 10 . 30 Destroy Leader 560 | . 46 10 166 30 . 40 94 132 . . 42 Allied During Kill 15 | . . . . . . 15 . . . . . Trap Triggered on 0b10 10 | . . . . . . . . 10 . . . Successful Hack 133 | . 20 . 45 . . . 31 17 . . 20 Disable Machine 135 | . 15 . 15 . . . . 90 . . 15 Anti-Garrison Action 200 | . . . . . . . . 200 . . . Destroy Structure 234 | . 25 . 63 . . 11 40 68 8 . 19 Partial Spotted 45 | . . . . . . . 15 30 . . . Lose Combat Pursuer 255 | . . . 60 . . . 15 165 . . 15 Influence Decreases 4125 | . 302 94 827 432 15 373 418 967 475 63 159 Entered New Map 652 | . . 12 . 106 . . 18 148 305 63 . Time Decay 2598 | . 292 82 517 326 15 353 230 484 160 . 139 Lost Part 190 | . 10 . . . . . 20 130 10 . 20 Lost Ally 40 | . . . 10 . . 20 . 10 . . . Purge Threat 645 | . . . 300 . . . 150 195 . . . Squads Dispatched 15 | . 2 . 1 . . 1 2 5 . . 4 Investigation 6 | . 1 . 1 . . . 1 2 . . 1 Extermination 3 | . . . . . . . . . . . 3 Reinforcement 5 | . 1 . . . . 1 1 2 . . . Assault . | . . . . . . . . . . . . Garrison 1 | . . . . . . . . 1 . . . Intercept . | . . . . . . . . . . . . Searches Triggered . | . . . . . . . . . . . . Construction Impeded 3 | . . . . . . 1 1 1 . . . Haulers Reinforced . | . . . . . . . . . . . . Active Scanning Responses . | . . . . . . . . . . . . Cargo Convoy Interrupts . | . . . . . . . . . . . . Stealth | -11 -10 -10 -9 -9 -9 -8 -8 -8 -8 -8 -6 --------- Run | Yrd Mat Min Mat Min Exi Min Mat Sto Rec Scr Fac Distress Signals 13 | . . . 6 . . . 2 5 . . . Communications Jammed 10 | . . . . . . . . 9 . . 1 Distress Signals 10 | . . . . . . . . 9 . . 1 Times Spotted 179 | . 18 3 50 8 . 18 32 38 1 . 11 Peak Tracking Total 10 | . 3 3 6 3 . 4 5 10 1 . 3 Tactical Retreats 13 | . . . 4 . . . 1 7 . . 1 Traps | -11 -10 -10 -9 -9 -9 -8 -8 -8 -8 -8 -6 ------- Run | Yrd Mat Min Mat Min Exi Min Mat Sto Rec Scr Fac Traps Triggered 6 | . 2 . 2 . . . . 1 . . 1 Indirectly . | . . . . . . . . . . . . Trap Hack Attempts 71 | . . . 51 . . . . 20 . . . Triggered 1 | . . . . . . . . 1 . . . Disarmed . | . . . . . . . . . . . . Reprogrammed 4 | . . . 2 . . . . 2 . . . Reused 1 | . . . . . . . . 1 . . . Traps Extracted . | . . . . . . . . . . . . Installed . | . . . . . . . . . . . . Triggered 1 | . . . . . . . . 1 . . . Machines | -11 -10 -10 -9 -9 -9 -8 -8 -8 -8 -8 -6 ---------- Run | Yrd Mat Min Mat Min Exi Min Mat Sto Rec Scr Fac Machines Disabled 10 | . 1 . 2 . . . . 6 . . 1 Max in Single Turn 1 | . 1 . 1 . . . . 1 . . 1 Garrison Access 1 | . . . . . . . . 1 . . . Machines Repaired . | . . . . . . . . . . . . Machines Dismantled 1 | . . . . . . . . 1 . . . Machines Sabotaged . | . . . . . . . . . . . . Overloaded Fab Kills . | . . . . . . . . . . . . Hacking | -11 -10 -10 -9 -9 -9 -8 -8 -8 -8 -8 -6 --------- Run | Yrd Mat Min Mat Min Exi Min Mat Sto Rec Scr Fac Machines Accessed 70 | . 7 . 12 1 3 . 12 13 9 5 8 Terminals 46 | . 7 . 11 . . . 9 11 5 . 3 Fabricators . | . . . . . . . . . . . . Repair Stations 2 | . . . . . . . . . . . 2 Recycling Units 8 | . . . . . . . 2 1 4 . 1 Scanalyzers 3 | . . . 1 . . . 1 . . . 1 Garrison Access 2 | . . . . . . . . 1 . . 1 Total Hacks 235 | . 17 . 35 1 25 . 33 34 19 55 16 Successful 165 | . 10 . 22 1 25 . 17 19 9 55 7 Failed 70 | . 7 . 13 . . . 16 15 10 . 9 Catastrophic 8 | . 1 . 3 . . . . 2 1 . 1 Database Lockouts . | . . . . . . . . . . . . Manual 89 | . 12 . 23 . . . 23 21 5 . 5 Terminals 129 | . 17 . 34 . . . 29 32 12 . 5 Fabricators . | . . . . . . . . . . . . Repair Stations 2 | . . . . . . . . . . . 2 Recycling Units 15 | . . . . . . . 3 1 7 . 4 Scanalyzers 5 | . . . 1 . . . 1 . . . 3 Garrison Access 3 | . . . . . . . . 1 . . 2 Terminal Hacks 117 | . 4 . 12 1 25 . 6 12 1 55 1 Record 81 | . . . 1 . 25 . . . . 55 . Part Schematic 1 | . . . . . . . . . 1 . . Robot Analysis 1 | . 1 . . . . . . . . . . Prototype ID Bank 5 | . 1 . 4 . . . . . . . . Open Door 5 | . . . . 1 . . . 4 . . . Branch Access Points 3 | . . . 1 . . . 1 1 . . . Terminal Index 4 | . 1 . . . . . 1 1 . . 1 Unreport Threat 5 | . . . 2 . . . 1 2 . . . Locate Traps 8 | . . . 3 . . . 3 2 . . . Maintenance Status 1 | . . . . . . . . 1 . . . Recall Investigation 1 | . . . . . . . . 1 . . . Registered Components 2 | . 1 . 1 . . . . . . . . Fabricator Hacks . | . . . . . . . . . . . . Repair Station Hacks . | . . . . . . . . . . . . Recycling Unit Hacks 10 | . . . . . . . 3 . 6 . 1 Retrieve Components 10 | . . . . . . . 3 . 6 . 1 Scanalyzer 3 | . . . 1 . . . 1 . . . 1 Insert Component 3 | . . . 1 . . . 1 . . . 1 Garrison Access Hacks . | . . . . . . . . . . . . Unauthorized Hacks 35 | . 6 . 9 . . . 7 7 2 . 4 Terminals 31 | . 6 . 9 . . . 7 6 2 . 1 Track 2 | . . . 1 . . . . 1 . . . Assimilate 5 | . 1 . 1 . . . 2 1 . . . Botnet 20 | . 4 . 6 . . . 4 4 2 . . Operators 4 | . 1 . 1 . . . 1 . . . 1 Fabricators . | . . . . . . . . . . . . Repair Stations . | . . . . . . . . . . . . Recycling Units 1 | . . . . . . . . . . . 1 Fedlink 1 | . . . . . . . . . . . 1 Scanalyzers . | . . . . . . . . . . . . Garrison Access 3 | . . . . . . . . 1 . . 2 Decoy 1 | . . . . . . . . . . . 1 Watchers 1 | . . . . . . . . . . . 1 Jam 1 | . . . . . . . . 1 . . . Data Cores Recovered 1 | . . . . . . . . . . . 1 Used . | . . . . . . . . . . . . Hacking Detections 49 | . 7 . 12 . . . 9 8 6 . 7 Full Trace Events 2 | . . . . . . . 1 1 . . . Feedback Events . | . . . . . . . . . . . . Feedback Blocked . | . . . . . . . . . . . . Robot Schematics Acquired . | . . . . . . . . . . . . Robots Built . | . . . . . . . . . . . . Authchips . | . . . . . . . . . . . . Time . | . . . . . . . . . . . . Total Robot Build Rating . | . . . . . . . . . . . . Part Schematics Acquired 1 | . . . . . . . . . 1 . . Parts Built . | . . . . . . . . . . . . Authchips . | . . . . . . . . . . . . Time . | . . . . . . . . . . . . Total Part Build Rating . | . . . . . . . . . . . . Parts Repaired . | . . . . . . . . . . . . Time . | . . . . . . . . . . . . Parts Recycled . | . . . . . . . . . . . . Recycled Matter . | . . . . . . . . . . . . Retrieved Matter . | . . . . . . . . . . . . Retrieved Components 15 | . . . . . . . 6 . 6 . 3 Parts Scanalyzed . | . . . . . . . . . . . . Part Schematics Acquired . | . . . . . . . . . . . . Parts Damaged . | . . . . . . . . . . . . Bothacking | -11 -10 -10 -9 -9 -9 -8 -8 -8 -8 -8 -6 ------------ Run | Yrd Mat Min Mat Min Exi Min Mat Sto Rec Scr Fac Used RIF Installer . | . . . . . . . . . . . . Robots Hacked . | . . . . . . . . . . . . Non-combat . | . . . . . . . . . . . . Combat . | . . . . . . . . . . . . Robot Hacks Applied . | . . . . . . . . . . . . Relay Couplers Released . | . . . . . . . . . . . . Fabnet Peak Effective % . | . . . . . . . . . . . . Robots Rewired 4 | . . . . . 4 . . . . . . Allies Hacked . | . . . . . . . . . . . . Hacks Repelled . | . . . . . . . . . . . . Allies | -11 -10 -10 -9 -9 -9 -8 -8 -8 -8 -8 -6 -------- Run | Yrd Mat Min Mat Min Exi Min Mat Sto Rec Scr Fac Total Allies 6 | . . . 1 . 4 . 1 . . . . Largest Group 3 | . . . 1 . 3 2 1 1 . . . Highest-Rated Group 37 | . . . 10 . 37 29 10 10 . . . Highest-Rated Ally 21 | . . . 10 . 21 21 10 10 . . . Total Orders 1 | . . . . 1 . . . . . . . RETURN 1 | . . . . 1 . . . . . . . Ally Attacks 9 | . . . . . . 9 . . . . . Total Damage 115 | . . . . . . 115 . . . . . Kills 4 | . . . . . . 4 . . . . . Allies Corrupted . | . . . . . . . . . . . . Allies Melted . | . . . . . . . . . . . . Intel | -11 -10 -10 -9 -9 -9 -8 -8 -8 -8 -8 -6 ------- Run | Yrd Mat Min Mat Min Exi Min Mat Sto Rec Scr Fac Active Infowar (turns) 5022 | . 729 . . . 729 44 1331 344 307 571 967 Sensors 4630 | . 729 . . . 729 44 1331 188 307 571 731 Traps 191 | . . . . . . . . 67 . . 124 Jamming 725 | . . . . . . . . 93 53 . 579 ECM 1 | . . . . . . . . . . . 1 Robot Analysis Total 1 | . 1 . . . . . . . . . . Derelict Logs Recovered 3 | . . 2 . 1 . . . . . . . Drone Launches 3 | . . . . 1 . 2 . . . . . Drone Recoveries 3 | . . . . 1 . 2 . . . . . Exploration | -11 -10 -10 -9 -9 -9 -8 -8 -8 -8 -8 -6 ------------- Run | Yrd Mat Min Mat Min Exi Min Mat Sto Rec Scr Fac Turns Passed 13928 | 56 1276 646 2423 1203 1659 1262 2194 1311 326 571 1001 Spaces Moved 10097 | 52 729 524 1226 698 1144 696 1063 813 519 1502 1131 Core 42 | 17 . . . . . . . 25 . . . Treads 4535 | . 582 156 905 698 883 696 353 232 30 . . Legs 22 | . . . . . . . . 22 . . . Wheels 871 | 35 147 368 321 . . . . . . . . Hover 710 | . . . . . . . 710 . . . . Flight 3917 | . . . . . 261 . . 534 489 1502 1131 Fastest Speed 29 | 50 90 90 85 160 32 160 52 29 30 30 30 Average Speed 100 | 76 145 110 148 160 130 164 89 90 38 30 49 Slowest Speed 320 | 90 160 160 240 160 160 165 165 320 170 30 50 Overloaded Moves . | . . . . . . . . . . . . Propulsion Burnouts . | . . . . . . . . . . . . Robots Hopped 9 | . . . . . . . . 9 . . . Potential Cave-ins . | . . . . . . . . . . . . Cave-ins Triggered . | . . . . . . . . . . . . Exploration Rate (%) 76 | 3 83 98 92 96 93 93 69 88 83 89 27 Regions Visited 11 Branch Regions 7 Pre-discovered Areas 9 | . . 1 . 1 1 . . . . 6 . Known Exits Taken 3 | . . . 1 . . . 1 1 . . . Unknown Exits Taken 8 | 1 1 1 . 1 1 1 . . 1 1 . Scrap Searched 8 | . . 1 . 2 . 3 . . . 2 . Spaces Dug 69 | . 7 . 17 . . . 12 6 8 . 19 Terrain Destroyed 240 | . 25 . 65 . 1 11 33 78 8 . 19 Melee 33 | . . . . . . . . 6 8 . 19 Projectile 1 | . . . . . . . . 1 . . . AOE 206 | . 25 . 65 . 1 11 33 71 . . . Terrain Rammed . | . . . . . . . . . . . . Walls Destroyed . | . . . . . . . . . . . . Machines Disabled . | . . . . . . . . . . . . Actions | -11 -10 -10 -9 -9 -9 -8 -8 -8 -8 -8 -6 --------- Run | Yrd Mat Min Mat Min Exi Min Mat Sto Rec Scr Fac Total 13039 | 67 876 575 1702 744 1273 755 2158 1174 611 1622 1482 Wait 1984 | 1 85 40 255 17 23 10 919 174 68 108 284 Move 10068 | 51 728 523 1225 697 1143 695 1062 794 518 1501 1131 Hop 9 | . . . . . . . . 9 . . . Pick Up 79 | 9 8 1 15 3 18 1 8 12 1 1 2 Fast Attach 41 | 1 1 . 6 . 3 1 4 13 2 3 7 Attach 34 | 5 . 1 . 1 8 1 3 12 1 1 1 Detach 9 | . . . . . 2 2 2 2 1 . . Swap 156 | . 18 4 49 3 12 10 33 17 2 2 6 Drop 110 | . 4 . 34 3 23 5 10 16 2 6 7 Fire 335 | . 32 6 67 20 35 28 116 31 . . . Melee 129 | . . . . . 6 . . 63 16 . 44 Ram . | . . . . . . . . . . . . Kick . | . . . . . . . . . . . . Crush 3 | . . . . . . 2 1 . . . . Escape Stasis . | . . . . . . . . . . . . Rewire . | . . . . . . . . . . . . Trap 71 | . . . 51 . . . . 20 . . . Miscellaneous 11 | . . . . . . . . 11 . . . Route ------- -11/Scrapyard -10/Materials (discovered 4 exits: *Mat x2 / [*Min x2]) -10/Mines (discovered 2 exits: *Mat x2) -9/Materials (discovered 5 exits: *Mat x3 / *Min x2) -9/Mines (discovered 3 exits: *Mat x2 / *Exi) -9/Exiles (discovered 2 exits: [*Min x2]) -8/Mines (discovered 2 exits: *Mat x2) -8/Materials (discovered 4 exits: [*Fac x2] / *Sto x2) -8/Storage (discovered 2 exits: [*Fac] / *Rec) -8/Recycling -8/Scraptown (discovered 2 exits: *Fac x2) -6/Factory (discovered 3 exits: Fac / Low x2) History --------- Turn | Location | Event 6 | -11/Scrapyard | Discovered new exit (range 15) 57 | -11/Scrapyard | Entered Materials 298 | -10/Materials | Discovered new exit (range 7) 311 | -10/Materials | Build established: Mutant 360 | -10/Materials | Discovered new exit (range 14) 823 | -10/Materials | Discovered new exit (range 6) 979 | -10/Materials | Discovered new exit (range 16) 1333 | -10/Materials | Entered Mines 1334 | -10/Mines | Assembled infested the area 1341 | -10/Mines | Learned Materials interactive machine intel 1352 | -10/Mines | YI-UF0 nonchalantly dropped a Grenade Launcher on the ground 1542 | -10/Mines | Learned location of Storage (-8) 1642 | -10/Mines | Discovered new exit (range 11) 1860 | -10/Mines | Discovered new exit (range 7) 1979 | -10/Mines | Entered Materials 1979 | -9/Materials | Evolved 2 slots: Utility x2 1980 | -9/Materials | Loaded intel: 18 interactive machine locations 2497 | -9/Materials | Discovered new exit (range 14) 3374 | -9/Materials | Discovered new exit (range 15) 3554 | -9/Materials | Discovered new exit (range 10) 3678 | -9/Materials | Discovered new exit (range 16) 3878 | -9/Materials | Build established: Scavenger-Mutant 4039 | -9/Materials | Identified exit to Mines 4168 | -9/Materials | Discovered new exit (range 16) 4264 | -9/Materials | Build established: Mutant 4402 | -9/Materials | Entered Mines 4501 | -9/Mines | Discovered new exit (range 15) 4579 | -9/Mines | Deemed a non-threat by the Exiles lab entrance 4579 | -9/Mines | Discovered new exit (range 5) 4658 | -9/Mines | Learned location of Zion (-6) 4923 | -9/Mines | Found the Drone Emporium 4933 | -9/Mines | Found Prototype Device 4934 | -9/Mines | Identified Splice Drone Bay 5145 | -9/Mines | Discovered new exit (range 10) 5605 | -9/Mines | Entered Exiles 5605 | -9/Exiles | Found Exiles lab destroyed 5708 | -9/Exiles | Discovered new exit (range 14) 6891 | -9/Exiles | Discovered new exit (range 14) 7150 | -9/Exiles | Build established: Scavenger-Mutant 7264 | -9/Exiles | Entered Mines 7264 | -8/Mines | Accompanied by 2 allies 7293 | -8/Mines | Discovered new exit (range 15) 7566 | -8/Mines | Build established: Mutant 7750 | -8/Mines | Discovered new exit (range 7) 7927 | -8/Mines | Found a Scrap Suit stashed away for nefarious purposes 7930 | -8/Mines | Found Scrap Suit 8526 | -8/Mines | Entered Materials 8526 | -8/Materials | Evolved 2 slots: Propulsion x1, Utility x1 8823 | -8/Materials | Build established: Scavenger-Mutant 9681 | -8/Materials | Discovered new exit (range 4) 9802 | -8/Materials | Discovered new exit (range 5) 10173 | -8/Materials | Build established: Mutant 10621 | -8/Materials | Discovered new exit (range 9) 10660 | -8/Materials | Identified exit to Storage 10698 | -8/Materials | Build established: Scavenger-Mutant 10720 | -8/Materials | Entered Storage 10720 | -8/Storage | Accompanied by 1 ally 11068 | -8/Storage | Build established: Mutant 11125 | -8/Storage | Identified exit to Recycling 11238 | -8/Storage | Lost 3 parts (2n1u) 11367 | -8/Storage | Garrison activated, responded to threat 11380 | -8/Storage | Lost 3 parts (1n2u) 11437 | -8/Storage | Lost 3 parts (1n1u1w) 11523 | -8/Storage | Discovered new exit (range 13) 11548 | -8/Storage | Core integrity fell below 50% 11977 | -8/Storage | Core integrity fell below 20% 12031 | -8/Storage | Entered Recycling 12149 | -8/Recycling | Scanned before Scraplab entrance 12345 | -8/Recycling | Entered Scraplab 12357 | -8/Recycling | Discovered new exit (range 2) 12357 | -8/Recycling | Entered Scraptown 12359 | -8/Scraptown | System corruption cleaned by C-Scrubber 12427 | -8/Scraptown | Discovered new exit (range 6) 12445 | -8/Scraptown | Visited Spacefarers 12459 | -8/Scraptown | Visited Cave Peace 12514 | -8/Scraptown | Visited Assassins FH 12520 | -8/Scraptown | Visited Symbiants 12530 | -8/Scraptown | Heard Great Nut preacher, LISTEN AND RECITE! 12543 | -8/Scraptown | Visited Comm Corps 12560 | -8/Scraptown | Visited Cyclists 12566 | -8/Scraptown | Visited UFD Registry 12566 | -8/Scraptown | Registered with UFD as "Laserbox" 12574 | -8/Scraptown | Visited LU-1G1's Boring Crew 12579 | -8/Scraptown | Visited Botcube Research 12586 | -8/Scraptown | Visited Chapter 10 12632 | -8/Scraptown | Visited Junk Repository 12642 | -8/Scraptown | Visited Research Penetration Think Tank 12649 | -8/Scraptown | Visited Junk Repository 12662 | -8/Scraptown | Build established: Hacker-Sprinter 12678 | -8/Scraptown | Discovered new exit (range 3) 12689 | -8/Scraptown | Visited Science Testing Area 12695 | -8/Scraptown | Visited Curators Association 12703 | -8/Scraptown | Visited Scrapoid Research Area 12730 | -8/Scraptown | Found Lrg. Botcube 12747 | -8/Scraptown | Visited Cartography Club 12767 | -8/Scraptown | Learned location of Proximity Caves (-4) 12767 | -8/Scraptown | Learned location of Archives (-4) 12767 | -8/Scraptown | Learned location of Hub_04(d) (-4) 12767 | -8/Scraptown | Learned 12 Factory zone layouts 12767 | -8/Scraptown | Learned 12 Research zone layouts 12767 | -8/Scraptown | Learned 8 Lower Caves zone layouts 12767 | -8/Scraptown | Learned 12 Lower Caves zone layouts 12767 | -8/Scraptown | Learned 16 Upper Caves zone layouts 12767 | -8/Scraptown | Learned 24 Upper Caves zone layouts 12767 | -8/Scraptown | Learned 16 Proximity Caves zone layouts 12767 | -8/Scraptown | Learned 24 Proximity Caves zone layouts 12767 | -8/Scraptown | Learned 4 Armory zone layouts 12767 | -8/Scraptown | Learned location of 3 exits from Lower Caves 12767 | -8/Scraptown | Learned location of 3 exits from Upper Caves 12798 | -8/Scraptown | Met Optimus 12798 | -8/Scraptown | Accepted into 0bPrime 12928 | -8/Scraptown | Entered Factory 12928 | -6/Factory | Evolved 4 slots: Power x1, Propulsion x1, Utility x2 12929 | -6/Factory | Identified exit to Factory 12929 | -6/Factory | Identified exit to Lower Caves 13243 | -6/Factory | Build established: Hacker-Mutant 13322 | -6/Factory | Loaded intel: 8 recycling unit locations 13929 | -6/Factory | Self-destructed Last Messages --------------- 13879_ Lgt. Fission Core destroyed. 13880_ P-60 Hacker suffers critical hit (Smash). 13880_ Destroyed Shock Rifle. 13880_ Destroyed Mic. Nuclear Core. 13880_ P-60 Hacker system corrupted by crushing effect. 13882_ P-60 Hacker misfires. 13886_ P-60 Hacker suffers critical hit (Smash). 13886_ Destroyed Imp. Heat Sink. 13886_ Destroyed Shock Rifle. 13886_ P-60 Hacker system corrupted by crushing effect. 13887_ P-60 Hacker system terminally corrupted. 13887_ U-05 Engineer builds a Wall. 13923_ Sneak attack on R-10 Processor. 13923_ R-10 Processor suffers critical hit (Smash). 13923_ Destroyed Com. Wheel. 13923_ R-10 Processor system corrupted by crushing effect. Map ----- +----------------------------------------------------+ | ???? # ####+########### #?# % | | ????"# #?# | | ????"# #?# | | ?????# #?# | | ?????# #?# | | ?????# #?##+###### | | ?????# """ """ """ """ """ """ #??# #????? | | ?????# """ """ """ """ """ """ #### ###??? | | ?????# ??"" """ """ """ """?""" o #??? | | ?????#???"" """ """ """ """ """ #??? | | ?????????? ? ? #??? | | ???????????? ]! ?? #??? | | ???????????? ]! ? #??? | | ????????????#########??#### ####+###### | | ????????????????????? # # | | ?????????????????"""""""" # """" # """" """ | | ???????????????? # """" + """" """ | | ????????????????""""""""" # """" # """" """ | | ??????????????? + !* # """" """ | | ??????????????? !!! # !* # | | ???????????????? !!! # !* # """" """ | | ???????????????? !!! R # # """" """ | | ???????????????? # !! # """" """ | | ?????????????# """"""""" # =! "F"" # """" """ | | ?????????????# + = """" + | | ?????????????# @# # | | ??????????????##+########## ########### | | ??????????????????????????# #+####+#+#####?????? | | ??????????????????????????# # #?????? | | ??????????????????????????# # #?????? | | ??????????????????????????# # """"""""" #?????? | | ??????????????????????????# # #?????? | | ??????????????????????????# # """"""""" #?????? | | ??????????????????????????#w # #?????? | | ??????????????????????????# # """"""""" #?????? | | ?????o????????????????????# # #?????? | | ??????????????????????????# # """"""""" #?????? | | ??????????????????????????# # #?????? | | ??????????????????????????# # """""""""=[#?????? | | ??????????????????????????#^ # | [%#?????? | | ??????????????????????????# #########"####?????? | | ??????????????????????????# # %% #????????? | | ??????????????????????????# # """ #????????? | | ??????????????############# # "R """ #????????? | | ??????????????# """T""" # # """ """ #????????? | | ??????????????# ! """ """ + / "" """ #????????? | | ??????????????# # # "" #????????? | | ??????????????# """"""""" # # "" #????????? | | ??????????????# # # #????????? | | ??????????????# """"""""" # ###########????###?? | +----------------------------------------------------+ Best States ------------- Heat Dissipation 50 Energy Generation 18 Energy Capacity 300 Matter Stores 300 Matter Capacity 300 Sight Range 16 Robot Scan Range 19 Terrain Scan Density 10 Jamming Range 14 Additional Mass Support 9 Armor Coverage 450 Resistance: TH 10 Core Shielding 20 Weapon Shielding 33 Evasion (%) 64 Recoil Reduction 3 Salvage Targeting 4 Offensive Hacking 20 Defensive Hacking 10 Authchip Count 1 Item Schematics ----------------- Hacking Suite | -8/Recycling | Hacked Robot Schematics ------------------ None Fabricated ------------ Nothing Repaired ---------- Nothing Alien Tech Used ----------------- None Achievements -------------- None Challenges ------------ None Game ------ Seed HardcellFluxPower Manual? 0 Play Time 01:42:13 Cumulative 103.6 hours Start 2025.10.08 @ 23:35:41 End 2025.10.09 @ 09:06:13 Sessions 3 Manual Loads 0 Difficulty Rogue Special Mode None Game No. 166 Rogue 165 Adventurer 1 Explorer 0 Win Type - Total 1 Types 0/0/0/1/0/0/0/0/0/0 Lore% 58 Gallery% 53 Achievement% 49 Wizard Run 0 Options --------- Layout 1 ASCII 0 Keyboard 0 Movement Mouse Keybinds 0 Fullscreen 1 Font 24/Smallcaps Map View 50x35 Zoom Use 0% Tactical HUD 1 Map Filters NONE Filters NONE Steam 1 RUN: 84eb08e2-f443-4474-860d-07d49195cc42